{"text_format":"1","workbook":"xlsx","n_sheets":4,"sheets":["Vsebina","Navodila","Matrični model","CALC"],"not_rendered":{"charts":0,"images":8,"macros":1,"external_links":0,"defined_names":51,"comments":0,"pivot_tables":0},"unopened":[],"bounds":{"document_bytes":16777216,"sheet_cells":100000,"rows_first":2000,"rows_last":500,"rows_between":2000,"halvings":0,"cell_chars":16384,"cell_head_chars":4096},"cells_cut":0,"cells_raw":0,"read":"whole","date_system":"1900"}

{"sheet":"Vsebina","index":0,"n_rows":25,"n_cols":2,"rows_kept":25,"cut":false,"hidden":false,"merged":[]}
[]
[null,"Priloga 1"]
[]
[]
[]
[]
[]
[]
[]
[]
[]
[]
[]
[null,"Vstopne in izstopne \ntarifne postavke omrežnine za prenosni sistem zemeljskega plina v Sloveniji"]
[null,"Poenostavljen tarifni model predstavlja matrični model določitve tarifnih postavk omrežnine in je pripravljen na podlagi (b) točke drugega odstavka 30. člena Uredbe Komisije (EU) 2017/460 z dne 16. marca 2017 o oblikovanju kodeksa omrežja o usklajenih tarifnih strukturah za plin"]
[]
[]
[]
[null,"Vsebina"]
[null,"Določitev vstopnih in izstopnih tarifnih postavk omrežnine po matrični metodi"]
[]
[]
[]
[null,"Zadnja sprememba dokumenta:"]
[null,"2022-02-23"]

{"sheet":"Navodila","index":1,"n_rows":54,"n_cols":2,"rows_kept":54,"cut":false,"hidden":false,"merged":[]}
[]
[]
[null,{"$f":"Vsebina!B20","v":"Določitev vstopnih in izstopnih tarifnih postavk omrežnine po matrični metodi"}]
[]
[null,"Uporabnik ima omogočen poenostavljen izračun vstopnih in izstopnih tarifnih postavk omrežnine za posamezno vstopno oziroma izstopno točko na podlagi vnosa povprečnega dnevnega zakupa v posamezni vstopno oziroma izstopni točki (zeleno obarvana polja)."]
[]
[null,"Pri iskanju ustreznega korekcijskega faktorja vstopnih in izstopnih tarif za dosego pričakovanega ciljnega prihodka se uporablja Excelov dodatek \"Excel Solver\", katerega mora uporabnik predhodno omogočiti (Datoteka → Možnosti → Dodatki  → Excel dodatki → Reševalnik)"]
[]
[null,"Postopek uporabniškega izračuna:"]
[]
[null,"Vnos povprečnega dnevnega zakupa zmogljivosti v posamezni vstopni oziroma izstopni točki , ki ne sme presegati tehnične zmogljivosti posamezne točke prenosnega sistema"]
[]
[]
[]
[]
[]
[]
[]
[]
[]
[]
[]
[]
[]
[null,"Tabela za vnos povprečnega dnevnega zakupa prenosne zmogljivosti v posamezni vstopno / izstopni točki"]
[]
[null,"Aktiviranje Excel dodatka \"Reševalnik\" in nastavljanje ciljnega upravičenega prihodka na strani operaterja prenosnega sistema (upravičen prihodek operaterja prenosnega sistema za leto 20XX znaša npr. XX.XXX.XXX EUR). V primeru da je spremenjen le povprečen dnevni zakup zmogljivosti v posamezni točki, se izvede le ukaz \"Reši\", ki izračuna ustrezen korekcijski faktor - faktor vstopno/izstopnih tarif za dosego pričakovanega ciljnega prihodka in posledično izračun ustreznih vstopnih in izstopnih tarif."]
[]
[]
[]
[]
[]
[]
[]
[]
[]
[]
[]
[]
[]
[]
[]
[]
[]
[]
[]
[]
[]
[]
[]
[]
[]
[]
[null,"Pogovorno okno Excelovega \"Reševalnika\""]

{"sheet":"Matrični model","index":2,"n_rows":86,"n_cols":8,"rows_kept":86,"cut":false,"hidden":false,"merged":[[42,2,42,3],[33,1,34,1],[32,6,32,7],[33,6,34,6],[33,7,34,7],[78,5,79,7],[42,4,42,5],[66,1,68,1],[66,2,66,3],[67,2,68,2],[67,3,68,3],[58,1,59,1],[43,2,44,2],[43,3,44,3],[42,1,44,1],[43,4,44,4],[43,5,44,5]]}
[null,null,null,null,null,null,null,{"$f":"Vsebina!B25","v":"2022-02-23"}]
[null,{"$f":"Vsebina!B14","v":"Vstopne in izstopne \ntarifne postavke omrežnine za prenosni sistem zemeljskega plina v Sloveniji"}]
[]
[null,{"$f":"Vsebina!B20","v":"Določitev vstopnih in izstopnih tarifnih postavk omrežnine po matrični metodi"}]
[]
[]
[]
[]
[null,{"$f":"\"Prenosni sistem zemeljskega plina v Republiki Sloveniji - Vstopno/Izstopne točke in tarife za regulatorno leto 2022\"","v":"Prenosni sistem zemeljskega plina v Republiki Sloveniji - Vstopno/Izstopne točke in tarife za regulatorno leto 2022"}]
[]
[]
[null,"Tabela 1. Pretoki v dnevu vršne obremenitve prenosnega sistema"]
[]
[null,"Odjem zemeljskega plina","Pretok [kWh/dan] "]
[null,"Odjem v točki C (Odsek B-C)",25125837]
[null,"Odjem v točki E (Odsek D-E)",44547539]
[null,"Odjem v točki F (Odsek D-F)",4916431]
[null,"Skupaj",74589807]
[]
[null,"Dobava zemeljskega plina",49128772]
[null,"Dobava v točki A (Odsek A-B)",74254609]
[null," Skupaj  ",74254609]
[]
[null,"Opomba:"]
[null,"Pretoki ob vršni obremenitvi na dan 08.01.2020"]
[null,null,null,null,null,"Shema prenosnega sistema porazdeljena po odsekih na dan vršne obremenitve 08.01.2020"]
[]
[null,"Določitev vstopni/Izstopnih tarif prenosnega sistema (Entry-Exit tarif)"]
[]
[null,"Vstopno/Izstopne  (Entry-Exit) tarife - brez upoštevanja korekcijskega faktorja vstopno/izstopnih tarif"]
[]
[]
[null,"Vstopno/Izstopne tarife [EUR/(kWh/dan)]",null,null,null,0.9,"Tehnične zmogljivosti vstopno/izstopnih točk"]
[null,"Vstopno/Izstopne točke","Vstopne tarife ",{"$f":"CALC!D3+CALC!D6","v":0.10491407253699614},{"$f":"C38*$F$33","v":2.005944937027343E-2},{"$f":"C39*$F$33","v":1.8267263064224846},"Vstopna zmogljivosti\n[kWh/dan]","Izstopna zmogljivosti\n[kWh/dan]"]
[null,null,"Izstopne tarife","Ceršak","Rogatec","Šempeter pri Gorici"]
[null,"Slovenija",{"$f":"CALC!C9","v":0.47491944087240939},{"$f":"D$34+$C36","v":0.57983351340940548},{"$f":"$E$34+C36","v":0.49497889024268282},{"$f":"F$34+$C36","v":2.3016457472948941},0,81252000]
[null,"Ceršak",{"$f":"D34*$F$33","v":9.4422665283296528E-2},0,{"$f":"CALC!$F$11+C37","v":9.4422665283296528E-2},{"$f":"F$34+$C37","v":1.921148971705781},139216000,0]
[null,"Rogatec",{"$f":"CALC!C8","v":2.2288277078081589E-2},{"$f":"D$34+$C38","v":0.12720234961507773},0,{"$f":"F$34+$C38","v":1.8490145835005662},7731000,68289000]
[null,"Šempeter pri Gorici",{"$f":"CALC!C10","v":2.0296958960249829},{"$f":"D$34+$C39","v":2.1346099685619793},{"$f":"CALC!$F$11+C39","v":2.0296958960249829},0,28534000,25940000]
[]
[]
[]
[null,"Vstopno/Izstopne točke","Povprečen zakup prenosnih zmogljivosti [kWh/dan]",null,"Prihodki iz naslova zakupa prenosnih zmogljivosti [€]"]
[null,null,"Vstopne zmogljivosti \n[kWh/dan]","Izstopne zmogljivosti \n[kWh/dan]","Vstopne zmogljivosti \n[€]","Izstopne zmogljivosti \n[€]"]
[]
[null,"Slovenija",0,61414974,{"$f":"$C$46*C36*F33","v":0},{"$f":"$D$46*C36","v":29167165.113273561}]
[null,"Ceršak",52012099,0,{"$f":"$C$47*D34","v":5456801.1272874242},{"$f":"$D$47*C37","v":0}]
[null,"Rogatec",3466924,6207000,{"$f":"$C$48*E34","v":69544.586448585847},{"$f":"$D$48*C38","v":138343.33582365242}]
[null,"Šempeter pri Gorici",1692726,0,{"$f":"$C$49*F34","v":3092147.1137653068},{"$f":"$D$49*C39","v":0}]
[null,"Skupaj",{"$f":"SUM(C46:C49)","v":57171749},{"$f":"SUM(D46:D49)","v":67621974},8618492.8275013156,29305508.449097212]
[null,null,null,null,"Skupni prihodek (nekorigiran)",{"$f":"E50+F50","v":37924001.276598528}]
[null,"Opomba:"]
[null,{"$f":"\"Ne določljive vstopno izstopne tarifne postavke se določijo kot \"&TEXT(F33,\"## %\")&\" vrednosti določljivih tarifnih postavk.\"","v":"Ne določljive vstopno izstopne tarifne postavke se določijo kot 90 % vrednosti določljivih tarifnih postavk."}]
[]
[null,"Vstopno/Izstopne (Entry-Exit) tarife - z upoštevanjem korekcijskega faktorja vstopno/izstopnih tarif"]
[]
[]
[null,"Vstopno/Izstopne tarife [EUR/(kWh/dan)]",null,null,null,0.9]
[null,"Vstopno/Izstopne točke","Vstopne tarife ",{"$f":"D34*D79","v":0.10904525188171406},{"$f":"C63*$F$58","v":2.0849326084626182E-2},{"$f":"C64*$F$58","v":1.8986569235747668}]
[null,null,"Izstopne tarife","Ceršak","Rogatec","Šempeter pri Gorici"]
[null,"Slovenija",{"$f":"C36*$D$79","v":0.49362024370174601},{"$f":"D$59+$C61","v":0.60266549558346005},{"$f":"E$59+$C61","v":0.51446956978637215},{"$f":"F$59+$C61","v":2.3922771672765126}]
[null,"Ceršak",{"$f":"D59*$F$58","v":9.8140726693542651E-2},0,{"$f":"C62+E59","v":0.11899005277816883},{"$f":"C62+F59","v":1.9967976502683094}]
[null,"Rogatec",{"$f":"C38*$D$79","v":2.3165917871806867E-2},{"$f":"D$59+$C63","v":0.13221116975352093},0,{"$f":"$C$63+F59","v":1.9218228414465737}]
[null,"Šempeter pri Gorici",{"$f":"C39*$D$79","v":2.109618803971963},{"$f":"E$59+$C64","v":2.1304681300565891},{"$f":"C64+E59","v":2.1304681300565891},0]
[]
[]
[null,"Vstopno/Izstopne točke","Prihodki iz naslova zakupa prenosnih zmogljivosti [€]"]
[null,null,"Vstopne zmogljivosti \n[€]","Izstopne zmogljivosti \n[€]"]
[]
[null,"Slovenija",{"$f":"$C$46*C61","v":0},{"$f":"$D$46*C61","v":30315674.432816394}]
[null,"Ceršak",{"$f":"$C$47*D59","v":5671672.4363516476},{"$f":"$D$47*C62","v":0}]
[null,"Rogatec",{"$f":"$C$48*E59","v":72283.02898661654},{"$f":"$D$48*C63","v":143790.85223030523}]
[null,"Šempeter pri Gorici",{"$f":"$C$49*F59","v":3213905.9396150205},{"$f":"$D$49*C64","v":0}]
[null,"Skupaj",{"$f":"SUM(C70:C73)","v":8957861.4049532861},{"$f":"SUM(D70:D73)","v":30459465.2850467}]
[null,null,"Pričakovan ciljni prihodek [€]",{"$f":"C74+D74","v":39417326.689999983}]
[]
[]
[null,null,null,"Korekcijski faktor vstopno/izstopnih tarif za dosego pričakovanega ciljnega prihodka"]
[null,null,"Korekcijski faktor vstopno/izstopnih tarif Kf(EE)",1.0393767894508255]
[]
[null,"Vstopno/Izstopne (Entry-Exit) tarife - Tarifna tabela"]
[]
[null,"tbl_Entry-Exit"]
[null,"Vstopno/izstopne tarife (Entry/Exit tarife) [EUR/(kWh/dan)]","Ceršak","Rogatec","Šempeter pri Gorici","Slovenija"]
[null,"Vstopna (Entry) tarifa",{"$f":"ROUND(D59,7)*100","v":10.904529999999999},{"$f":"ROUND(E59,7)*100","v":2.0849299999999999},{"$f":"ROUND(F59,7)*100","v":189.86569},{"$f":"ROUND(AVERAGE(C85:E85),5)","v":67.618380000000002}]
[null,"Izstopna (Exit) tarifa",{"$f":"ROUND(C62,7)*100","v":9.8140699999999992},{"$f":"ROUND(C63,7)*100","v":2.3165900000000001},{"$f":"ROUND(C64,7)*100","v":210.96187999999998},{"$f":"ROUND(C61,7)*100","v":49.362020000000001}]

{"sheet":"CALC","index":3,"n_rows":12,"n_cols":5,"rows_kept":12,"cut":false,"hidden":true,"merged":[[6,3,6,4]]}
[null,null,null,"  Strošek enote ob vršni obremenitvi \n[EUR/(kWh/dan)]","Pričakovan prihodek \n[EUR]"]
[null,null,null," A do B  "," A do B  "]
[null,"Odsek dostopa do prenosnega sistema","Ceršak",0.10491407253699614,7790353.4348322861]
[null,"Skupaj  ",null," ",7790353.4348322861]
[null,null,"Sistemska vstopna točka"," B  "," B "]
[null,null,"Sistemska vstopna tarifa (Entry tariffs) ",0," "]
[null,"Sistemska izstopna točka",null,"Vstopna + Izstopna"]
[null,"Rogatec",2.2288277078081589E-2,2.2288277078081589E-2,560011.61687471427]
[null,"Slovenija",0.47491944087240939,0.47491944087240939,21156492.31412185]
[null,"Šempeter pri Gorici",2.0296958960249829,2.0296958960249829,9978859.8237900026]
[null,"Skupaj  ",null,null,31695363.754786566]
[null," Skupaj  ",null,null,39485717.189618856]